[Event "Early-Titled-Tuesday-Blitz-May-07-2024"]
[Site "Chess.com"]
[Date "2024.05.07"]
[Round "3"]
[White "biveklama"]
[Black "TenisMaster"]
[Result "0-1"]
[WhiteElo "2536"]
[BlackElo "2880"]
[TimeControl "180+1"]
[EndTime "8:31:12 PDT"]
[Termination "TenisMaster won on time"]

1. e4 {[%clk 0:03:00.9]} 1... e5 {[%clk 0:02:59.1]} 2. Nf3 {[%clk 0:03:00.3]}
2... Nc6 {[%clk 0:02:59.8]} 3. Bc4 {[%clk 0:02:59.9]} 3... Bc5 {[%clk
0:02:59.4]} 4. c3 {[%clk 0:02:59.4]} 4... Nf6 {[%clk 0:02:59.9]} 5. d3 {[%clk
0:02:59.6]} 5... d6 {[%clk 0:02:59.8]} 6. O-O {[%clk 0:02:57.9]} 6... a6 {[%clk
0:02:57.8]} 7. Bb3 {[%clk 0:02:58]} 7... h6 {[%clk 0:02:52.9]} 8. d4 {[%clk
0:02:33.3]} 8... Ba7 {[%clk 0:02:52.1]} 9. dxe5 {[%clk 0:02:31.6]} 9... Nxe5
{[%clk 0:02:52.1]} 10. Nxe5 {[%clk 0:02:30.6]} 10... dxe5 {[%clk 0:02:53]} 11.
Qxd8+ {[%clk 0:02:30.3]} 11... Kxd8 {[%clk 0:02:53.9]} 12. Bxf7 {[%clk
0:02:25.6]} 12... Nxe4 {[%clk 0:02:54]} 13. Be3 {[%clk 0:02:20.7]} 13... Bxe3
{[%clk 0:02:50.8]} 14. fxe3 {[%clk 0:02:20.6]} 14... Ke7 {[%clk 0:02:47.9]} 15.
Bg6 {[%clk 0:01:51.2]} 15... Nd6 {[%clk 0:02:23.3]} 16. Nd2 {[%clk 0:01:46.1]}
16... Bg4 {[%clk 0:02:21.7]} 17. Ne4 {[%clk 0:01:35.7]} 17... Rhf8 {[%clk
0:02:16.2]} 18. Nxd6 {[%clk 0:01:31.8]} 18... cxd6 {[%clk 0:02:15.2]} 19. Be4
{[%clk 0:01:21.4]} 19... Rab8 {[%clk 0:02:00.6]} 20. Rxf8 {[%clk 0:01:19.8]}
20... Kxf8 {[%clk 0:02:01.5]} 21. Rf1+ {[%clk 0:01:13.7]} 21... Ke7 {[%clk
0:02:02]} 22. Bd5 {[%clk 0:01:13.4]} 22... Be6 {[%clk 0:02:01.6]} 23. Bxe6
{[%clk 0:01:12.5]} 23... Kxe6 {[%clk 0:02:02.5]} 24. e4 {[%clk 0:01:03.5]} 24...
b5 {[%clk 0:02:01.9]} 25. a3 {[%clk 0:01:03.1]} 25... a5 {[%clk 0:01:59]} 26.
Kf2 {[%clk 0:00:21]} 26... Rf8+ {[%clk 0:01:58.1]} 27. Ke2 {[%clk 0:00:20.8]}
27... Rxf1 {[%clk 0:01:59]} 28. Kxf1 {[%clk 0:00:21.4]} 28... a4 {[%clk
0:01:49.8]} 29. Ke2 {[%clk 0:00:21.4]} 29... d5 {[%clk 0:01:49.7]} 30. Kd3
{[%clk 0:00:21.9]} 30... Kd6 {[%clk 0:01:47.8]} 31. Ke3 {[%clk 0:00:09.9]} 31...
Kc5 {[%clk 0:01:46.9]} 32. Kd3 {[%clk 0:00:10.3]} 32... g6 {[%clk 0:01:45]} 33.
h3 {[%clk 0:00:09.9]} 33... h5 {[%clk 0:01:40.4]} 34. h4 {[%clk 0:00:09.8]}
34... Kd6 {[%clk 0:01:40.4]} 35. Ke3 {[%clk 0:00:08.9]} 35... dxe4 {[%clk
0:01:38.2]} 36. Kxe4 {[%clk 0:00:09.1]} 36... Ke6 {[%clk 0:01:38.9]} 37. Ke3
{[%clk 0:00:03]} 37... Kd5 {[%clk 0:01:35.9]} 38. Kd3 {[%clk 0:00:03.5]} 38...
e4+ {[%clk 0:01:22.4]} 39. Ke3 {[%clk 0:00:03.9]} 39... Kc4 {[%clk 0:01:10.4]}
0-1

[Event "Early-Titled-Tuesday-Blitz-May-07-2024"]
[Site "Chess.com"]
[Date "2024.05.07"]
[Round "3"]
[White "ahmedkandiliii"]
[Black "Aisen1011"]
[Result "1-0"]
[WhiteElo "2646"]
[BlackElo "2473"]
[TimeControl "180+1"]
[EndTime "8:31:16 PDT"]
[Termination "ahmedkandiliii won by resignation"]

1. Nf3 {[%clk 0:03:00.9]} 1... d5 {[%clk 0:02:45.6]} 2. g3 {[%clk 0:03:01]} 2...
Nf6 {[%clk 0:02:45.5]} 3. Bg2 {[%clk 0:03:01.5]} 3... Bf5 {[%clk 0:02:46.1]} 4.
O-O {[%clk 0:03:02]} 4... e6 {[%clk 0:02:46.8]} 5. d3 {[%clk 0:03:02.5]} 5...
Be7 {[%clk 0:02:47.5]} 6. Nbd2 {[%clk 0:03:02.8]} 6... h6 {[%clk 0:02:46.7]} 7.
Re1 {[%clk 0:03:02.9]} 7... O-O {[%clk 0:02:47.3]} 8. e4 {[%clk 0:03:03.4]} 8...
Bh7 {[%clk 0:02:47.9]} 9. e5 {[%clk 0:03:03.8]} 9... Nfd7 {[%clk 0:02:48.7]} 10.
c4 {[%clk 0:03:01.7]} 10... c6 {[%clk 0:02:48.7]} 11. Nb3 {[%clk 0:02:56.8]}
11... Na6 {[%clk 0:02:48.7]} 12. cxd5 {[%clk 0:02:53.6]} 12... cxd5 {[%clk
0:02:49.6]} 13. d4 {[%clk 0:02:54]} 13... Nb4 {[%clk 0:02:48.9]} 14. Re2 {[%clk
0:02:48.4]} 14... Rc8 {[%clk 0:02:47.5]} 15. a3 {[%clk 0:02:44.3]} 15... Bc2
{[%clk 0:02:46.1]} 16. Qd2 {[%clk 0:02:17.2]} 16... Bxb3 {[%clk 0:02:33.3]} 17.
axb4 {[%clk 0:02:16.4]} 17... Rc2 {[%clk 0:02:27.8]} 18. Qe1 {[%clk 0:02:15]}
18... Rxe2 {[%clk 0:02:19]} 19. Qxe2 {[%clk 0:02:15.9]} 19... Qb6 {[%clk
0:02:19.3]} 20. Bd2 {[%clk 0:02:11.6]} 20... Rc8 {[%clk 0:02:16.5]} 21. Qe1
{[%clk 0:02:04.7]} 21... a6 {[%clk 0:02:10.3]} 22. Bc3 {[%clk 0:02:04.8]} 22...
Nb8 {[%clk 0:01:56.7]} 23. Nd2 {[%clk 0:01:50.1]} 23... Bc4 {[%clk 0:01:54.1]}
24. Nxc4 {[%clk 0:01:49.8]} 24... Rxc4 {[%clk 0:01:55]} 25. Bf1 {[%clk
0:01:49.4]} 25... Rc8 {[%clk 0:01:50.1]} 26. Qe2 {[%clk 0:01:16.4]} 26... Bxb4
{[%clk 0:01:46.4]} 27. Rc1 {[%clk 0:01:01.1]} 27... Bxc3 {[%clk 0:01:30.8]} 28.
bxc3 {[%clk 0:01:00.6]} 28... Nc6 {[%clk 0:01:28.7]} 29. Qe3 {[%clk 0:00:48.4]}
29... Qb2 {[%clk 0:01:06.7]} 30. Bd3 {[%clk 0:00:29.8]} 30... b5 {[%clk
0:01:04.4]} 31. Rb1 {[%clk 0:00:27.3]} 31... Qxc3 {[%clk 0:01:00.4]} 32. Bh7+
{[%clk 0:00:26.9]} 32... Kxh7 {[%clk 0:00:50.4]} 33. Qxc3 {[%clk 0:00:27.8]}
33... Ne7 {[%clk 0:00:50.6]} 34. Qa3 {[%clk 0:00:27.4]} 34... Nf5 {[%clk
0:00:45.5]} 35. Qxa6 {[%clk 0:00:27]} 35... Nxd4 {[%clk 0:00:46]} 36. Qxc8
{[%clk 0:00:26.5]} 1-0

[Event "Early-Titled-Tuesday-Blitz-May-07-2024"]
[Site "Chess.com"]
[Date "2024.05.07"]
[Round "3"]
[White "vanyakuba"]
[Black "enriquebutti"]
[Result "1-0"]
[WhiteElo "2405"]
[BlackElo "2175"]
[TimeControl "180+1"]
[EndTime "8:31:17 PDT"]
[Termination "vanyakuba won by resignation"]

1. e4 {[%clk 0:03:00.9]} 1... c5 {[%clk 0:02:59.5]} 2. c3 {[%clk 0:03:00.9]}
2... Nf6 {[%clk 0:02:58.6]} 3. e5 {[%clk 0:03:01.2]} 3... Nd5 {[%clk 0:02:58.1]}
4. d4 {[%clk 0:03:01.9]} 4... cxd4 {[%clk 0:02:57.8]} 5. cxd4 {[%clk 0:03:02.8]}
5... d6 {[%clk 0:02:57.6]} 6. Nf3 {[%clk 0:03:01.3]} 6... Nc6 {[%clk 0:02:57]}
7. Bc4 {[%clk 0:02:58.9]} 7... Nb6 {[%clk 0:02:53.9]} 8. Bb5 {[%clk 0:02:58.9]}
8... d5 {[%clk 0:02:53.4]} 9. Nc3 {[%clk 0:02:56.7]} 9... Bg4 {[%clk 0:02:52.4]}
10. h3 {[%clk 0:02:56.4]} 10... Bxf3 {[%clk 0:02:50.8]} 11. Qxf3 {[%clk
0:02:56.2]} 11... e6 {[%clk 0:02:50.5]} 12. Be3 {[%clk 0:02:51.3]} 12... Rc8
{[%clk 0:02:41.4]} 13. O-O {[%clk 0:02:49.5]} 13... a6 {[%clk 0:02:40.4]} 14.
Be2 {[%clk 0:02:21.7]} 14... Qh4 {[%clk 0:02:30.2]} 15. Rfd1 {[%clk 0:02:19.4]}
15... Be7 {[%clk 0:02:26.4]} 16. Bf1 {[%clk 0:01:38.9]} 16... Bg5 {[%clk
0:02:15.8]} 17. g3 {[%clk 0:01:30.1]} 17... Qh6 {[%clk 0:02:13.3]} 18. h4 {[%clk
0:01:30]} 18... Bxe3 {[%clk 0:02:11.8]} 19. fxe3 {[%clk 0:01:30.9]} 19... O-O
{[%clk 0:02:06.4]} 20. e4 {[%clk 0:01:14.6]} 20... Rcd8 {[%clk 0:02:04.3]} 21.
exd5 {[%clk 0:01:06]} 21... Nxd5 {[%clk 0:02:03.1]} 22. Ne4 {[%clk 0:01:01.9]}
22... Ne3 {[%clk 0:01:53.2]} 23. Nd6 {[%clk 0:00:54.8]} 23... Nxd1 {[%clk
0:01:51.9]} 24. Rxd1 {[%clk 0:00:55.7]} 24... Rd7 {[%clk 0:01:19.2]} 25. Bh3
{[%clk 0:00:50.6]} 25... Rxd6 {[%clk 0:01:13.6]} 26. exd6 {[%clk 0:00:50.5]}
26... Rd8 {[%clk 0:01:13]} 27. d5 {[%clk 0:00:40]} 27... exd5 {[%clk 0:01:00.2]}
28. Qxd5 {[%clk 0:00:38.5]} 28... Qe3+ {[%clk 0:00:56.8]} 29. Kh2 {[%clk
0:00:38.5]} 29... Qe5 {[%clk 0:00:55.1]} 30. Qd2 {[%clk 0:00:26.3]} 30... f5
{[%clk 0:00:45]} 31. a3 {[%clk 0:00:21.1]} 31... Qf6 {[%clk 0:00:40.1]} 32. Qd5+
{[%clk 0:00:17.8]} 1-0

[Event "Early-Titled-Tuesday-Blitz-May-07-2024"]
[Site "Chess.com"]
[Date "2024.05.07"]
[Round "3"]
[White "RebelJohnny"]
[Black "Kirill_Klukin"]
[Result "0-1"]
[WhiteElo "2570"]
[BlackElo "2858"]
[TimeControl "180+1"]
[EndTime "8:31:18 PDT"]
[Termination "Kirill_Klukin won on time"]

1. e4 {[%clk 0:03:00.4]} 1... c5 {[%clk 0:02:59.9]} 2. Nf3 {[%clk 0:03:00.1]}
2... g6 {[%clk 0:03:00.1]} 3. d4 {[%clk 0:02:59.8]} 3... cxd4 {[%clk 0:03:01]}
4. Nxd4 {[%clk 0:03:00.7]} 4... Bg7 {[%clk 0:03:01.6]} 5. Nc3 {[%clk 0:02:59.8]}
5... Nc6 {[%clk 0:03:01.5]} 6. Be3 {[%clk 0:02:58.2]} 6... Nf6 {[%clk
0:03:02.1]} 7. Bc4 {[%clk 0:02:57]} 7... O-O {[%clk 0:03:01.7]} 8. Bb3 {[%clk
0:02:56.5]} 8... Re8 {[%clk 0:03:02]} 9. h4 {[%clk 0:02:46.5]} 9... e6 {[%clk
0:02:58.3]} 10. h5 {[%clk 0:02:36.5]} 10... d5 {[%clk 0:02:43.8]} 11. Nxc6
{[%clk 0:02:35.9]} 11... bxc6 {[%clk 0:02:43.6]} 12. e5 {[%clk 0:02:36.5]} 12...
Nd7 {[%clk 0:02:39.8]} 13. hxg6 {[%clk 0:02:36.5]} 13... hxg6 {[%clk 0:02:40.2]}
14. Qg4 {[%clk 0:02:36.3]} 14... Nxe5 {[%clk 0:02:14.4]} 15. Qg3 {[%clk
0:02:36.5]} 15... d4 {[%clk 0:02:08.9]} 16. O-O-O {[%clk 0:02:25.2]} 16... c5
{[%clk 0:02:04.9]} 17. Ne4 {[%clk 0:02:03.9]} 17... Qa5 {[%clk 0:01:24.3]} 18.
Bg5 {[%clk 0:01:49.5]} 18... c4 {[%clk 0:01:18]} 19. Nf6+ {[%clk 0:01:35.2]}
19... Kf8 {[%clk 0:01:17.7]} 20. Nxe8 {[%clk 0:01:05.3]} 20... Kxe8 {[%clk
0:01:14.8]} 21. Rh7 {[%clk 0:00:28.8]} 21... cxb3 {[%clk 0:00:46.7]} 22. Qxb3
{[%clk 0:00:14]} 22... Bf8 {[%clk 0:00:38]} 23. Rxd4 {[%clk 0:00:10.7]} 23...
Nc6 {[%clk 0:00:38.3]} 24. Qc4 {[%clk 0:00:01.6]} 24... Qxg5+ {[%clk 0:00:37.2]}
25. f4 {[%clk 0:00:02.2]} 25... Qc5 {[%clk 0:00:32]} 0-1

[Event "Early-Titled-Tuesday-Blitz-May-07-2024"]
[Site "Chess.com"]
[Date "2024.05.07"]
[Round "3"]
[White "Alenzer"]
[Black "Zheenbekov86"]
[Result "0-1"]
[WhiteElo "2225"]
[BlackElo "2420"]
[TimeControl "180+1"]
[EndTime "8:31:18 PDT"]
[Termination "Zheenbekov86 won on time"]

1. e4 {[%clk 0:02:57]} 1... c6 {[%clk 0:02:59.1]} 2. Nc3 {[%clk 0:02:56.8]} 2...
d5 {[%clk 0:02:58.7]} 3. Qe2 {[%clk 0:02:57.2]} 3... dxe4 {[%clk 0:02:58.1]} 4.
Nxe4 {[%clk 0:02:58.1]} 4... e6 {[%clk 0:02:49.2]} 5. g3 {[%clk 0:02:57.1]} 5...
Nd7 {[%clk 0:02:48.1]} 6. Bg2 {[%clk 0:02:57.1]} 6... Ngf6 {[%clk 0:02:48]} 7.
d3 {[%clk 0:02:56.2]} 7... Nxe4 {[%clk 0:02:41.5]} 8. dxe4 {[%clk 0:02:56.3]}
8... e5 {[%clk 0:02:41.5]} 9. Bd2 {[%clk 0:02:55.8]} 9... Bc5 {[%clk 0:02:40.5]}
10. O-O-O {[%clk 0:02:55.3]} 10... O-O {[%clk 0:02:39.4]} 11. f4 {[%clk
0:02:55.4]} 11... Qe7 {[%clk 0:02:32.6]} 12. Nf3 {[%clk 0:02:49.4]} 12... a5
{[%clk 0:02:31.7]} 13. Bc3 {[%clk 0:02:47.9]} 13... exf4 {[%clk 0:02:12.9]} 14.
gxf4 {[%clk 0:02:46.6]} 14... Bb4 {[%clk 0:02:10.4]} 15. Bd4 {[%clk 0:02:28.7]}
15... Bc5 {[%clk 0:02:09.9]} 16. Rhg1 {[%clk 0:02:08.1]} 16... a4 {[%clk
0:02:07.6]} 17. a3 {[%clk 0:02:07.5]} 17... Bxd4 {[%clk 0:02:02.8]} 18. Nxd4
{[%clk 0:02:07.1]} 18... Nc5 {[%clk 0:02:03.4]} 19. Bf3 {[%clk 0:01:47.9]} 19...
Kh8 {[%clk 0:01:55.7]} 20. f5 {[%clk 0:01:41.4]} 20... Qe5 {[%clk 0:01:39.8]}
21. Kb1 {[%clk 0:01:35.4]} 21... Bd7 {[%clk 0:01:38.6]} 22. Qg2 {[%clk
0:01:10.3]} 22... Rg8 {[%clk 0:01:36.2]} 23. h4 {[%clk 0:01:02.1]} 23... Ra6
{[%clk 0:01:28.9]} 24. h5 {[%clk 0:01:01.5]} 24... h6 {[%clk 0:01:28.6]} 25. Ne2
{[%clk 0:00:52.8]} 25... Rb6 {[%clk 0:01:28]} 26. c3 {[%clk 0:00:53.1]} 26...
Bxf5 {[%clk 0:01:19.4]} 27. exf5 {[%clk 0:00:48.3]} 27... Qxf5+ {[%clk
0:01:19.2]} 28. Ka2 {[%clk 0:00:40.5]} 28... Qe6+ {[%clk 0:01:18.7]} 29. Kb1
{[%clk 0:00:39.5]} 29... Qb3 {[%clk 0:01:18.4]} 30. Nf4 {[%clk 0:00:15.2]} 30...
Qxc3 {[%clk 0:01:17.7]} 31. Rc1 {[%clk 0:00:08.8]} 31... Qe5 {[%clk 0:01:11.8]}
32. Nh3 {[%clk 0:00:03.3]} 32... Nd3 {[%clk 0:01:09.1]} 33. Rcd1 {[%clk
0:00:03.5]} 33... Rxb2+ {[%clk 0:01:08.6]} 34. Ka1 {[%clk 0:00:02.3]} 34...
Rxg2+ {[%clk 0:01:07.9]} 0-1

[Event "Early-Titled-Tuesday-Blitz-May-07-2024"]
[Site "Chess.com"]
[Date "2024.05.07"]
[Round "3"]
[White "KuzubovYuriy"]
[Black "PavelShkapenko"]
[Result "1-0"]
[WhiteElo "2966"]
[BlackElo "2720"]
[TimeControl "180+1"]
[EndTime "8:31:19 PDT"]
[Termination "KuzubovYuriy won by resignation"]

1. d4 {[%clk 0:03:00.9]} 1... d5 {[%clk 0:02:59.2]} 2. c4 {[%clk 0:03:00.8]}
2... dxc4 {[%clk 0:02:59.5]} 3. Nf3 {[%clk 0:03:01.1]} 3... Nf6 {[%clk
0:02:58.4]} 4. e3 {[%clk 0:03:01.6]} 4... Bg4 {[%clk 0:02:57.3]} 5. Bxc4 {[%clk
0:03:00.7]} 5... e6 {[%clk 0:02:57.5]} 6. h3 {[%clk 0:02:57.5]} 6... Bh5 {[%clk
0:02:57.2]} 7. Nc3 {[%clk 0:02:56.4]} 7... Nc6 {[%clk 0:02:49.7]} 8. Bb5 {[%clk
0:02:51.5]} 8... Bd6 {[%clk 0:02:48.9]} 9. e4 {[%clk 0:02:45.8]} 9... Bxf3
{[%clk 0:02:15.3]} 10. Qxf3 {[%clk 0:02:37.5]} 10... Nd7 {[%clk 0:02:02]} 11.
Be3 {[%clk 0:02:14.1]} 11... O-O {[%clk 0:01:53]} 12. O-O {[%clk 0:02:08.2]}
12... e5 {[%clk 0:01:51.8]} 13. Bxc6 {[%clk 0:02:06.5]} 13... bxc6 {[%clk
0:01:51]} 14. Rfd1 {[%clk 0:01:56.6]} 14... Qe7 {[%clk 0:01:46.1]} 15. d5 {[%clk
0:01:55.8]} 15... c5 {[%clk 0:01:29]} 16. Rac1 {[%clk 0:01:55.4]} 16... g6
{[%clk 0:01:22.4]} 17. Bh6 {[%clk 0:01:48.3]} 17... Rfb8 {[%clk 0:01:21.6]} 18.
b3 {[%clk 0:01:39.5]} 18... Rb4 {[%clk 0:01:13.6]} 19. Na4 {[%clk 0:01:26.9]}
19... Rab8 {[%clk 0:01:11.9]} 20. Bd2 {[%clk 0:01:21.6]} 20... Rd4 {[%clk
0:01:08.4]} 21. Be3 {[%clk 0:01:21.5]} 21... Rxd1+ {[%clk 0:01:07.4]} 22. Qxd1
{[%clk 0:01:21.9]} 22... Rb4 {[%clk 0:01:05]} 23. Qc2 {[%clk 0:01:17.7]} 23...
a6 {[%clk 0:00:50.9]} 24. Qd3 {[%clk 0:01:06]} 24... a5 {[%clk 0:00:46.6]} 25.
Qc2 {[%clk 0:01:03.2]} 25... c4 {[%clk 0:00:34.7]} 26. bxc4 {[%clk 0:00:55.6]}
26... Nc5 {[%clk 0:00:35.3]} 27. Nb2 {[%clk 0:00:54.1]} 27... Nxe4 {[%clk
0:00:24.4]} 28. Qxe4 {[%clk 0:00:48.5]} 28... Rxb2 {[%clk 0:00:24.2]} 29. c5
{[%clk 0:00:48.9]} 29... Rxa2 {[%clk 0:00:20.6]} 30. cxd6 {[%clk 0:00:47.8]}
30... cxd6 {[%clk 0:00:20.3]} 31. Bh6 {[%clk 0:00:45.2]} 31... f5 {[%clk
0:00:16.9]} 32. Rc8+ {[%clk 0:00:41]} 32... Kf7 {[%clk 0:00:16.6]} 33. Qc4
{[%clk 0:00:41.5]} 33... Ra1+ {[%clk 0:00:16.3]} 34. Kh2 {[%clk 0:00:41.5]}
34... Kf6 {[%clk 0:00:14.9]} 35. Rf8+ {[%clk 0:00:36.5]} 1-0

[Event "Early-Titled-Tuesday-Blitz-May-07-2024"]
[Site "Chess.com"]
[Date "2024.05.07"]
[Round "3"]
[White "LuisFSiles"]
[Black "Ginger_GM"]
[Result "0-1"]
[WhiteElo "2487"]
[BlackElo "2661"]
[TimeControl "180+1"]
[EndTime "8:31:21 PDT"]
[Termination "Ginger_GM won on time"]

1. e4 {[%clk 0:03:00.9]} 1... d6 {[%clk 0:02:57.3]} 2. Nc3 {[%clk 0:03:00.3]}
2... Nf6 {[%clk 0:02:54.1]} 3. f4 {[%clk 0:03:00.1]} 3... d5 {[%clk 0:02:53.9]}
4. e5 {[%clk 0:02:57.8]} 4... Ng4 {[%clk 0:02:53.1]} 5. d4 {[%clk 0:02:54]} 5...
c5 {[%clk 0:02:51.6]} 6. Nf3 {[%clk 0:02:45.6]} 6... Nc6 {[%clk 0:02:40.4]} 7.
h3 {[%clk 0:02:25.6]} 7... Nh6 {[%clk 0:02:38.4]} 8. g4 {[%clk 0:02:22.5]} 8...
cxd4 {[%clk 0:02:32.7]} 9. Nxd4 {[%clk 0:02:21.1]} 9... Ng8 {[%clk 0:02:32.2]}
10. Bg2 {[%clk 0:01:58.9]} 10... e6 {[%clk 0:02:29.4]} 11. Be3 {[%clk
0:01:59.5]} 11... h5 {[%clk 0:02:25.1]} 12. Bf2 {[%clk 0:01:43.4]} 12... Bb4
{[%clk 0:02:14.4]} 13. Qd3 {[%clk 0:01:35.4]} 13... Nxd4 {[%clk 0:01:47]} 14.
Qxd4 {[%clk 0:01:34.6]} 14... Qa5 {[%clk 0:01:42.1]} 15. O-O {[%clk 0:01:26.2]}
15... hxg4 {[%clk 0:01:41.1]} 16. hxg4 {[%clk 0:01:25.8]} 16... Ne7 {[%clk
0:01:33.3]} 17. f5 {[%clk 0:01:00.1]} 17... Bxc3 {[%clk 0:01:26.9]} 18. bxc3
{[%clk 0:00:59.7]} 18... exf5 {[%clk 0:01:27]} 19. e6 {[%clk 0:00:36]} 19...
Bxe6 {[%clk 0:01:24.4]} 20. Qxg7 {[%clk 0:00:26.4]} 20... Rg8 {[%clk 0:01:23.8]}
21. Qe5 {[%clk 0:00:20.6]} 21... Rxg4 {[%clk 0:01:20.6]} 22. Rab1 {[%clk
0:00:17.5]} 22... Qa6 {[%clk 0:01:03.2]} 23. Bc5 {[%clk 0:00:11.7]} 23... Ng6
{[%clk 0:00:56]} 24. Qf6 {[%clk 0:00:09.9]} 24... Qc6 {[%clk 0:00:50.4]} 25. Bd4
{[%clk 0:00:09.9]} 25... Kd7 {[%clk 0:00:44.1]} 26. c4 {[%clk 0:00:05.9]} 26...
dxc4 {[%clk 0:00:39.6]} 27. Rf2 {[%clk 0:00:00.6]} 27... Nf4 {[%clk 0:00:35.8]}
28. Kf1 {[%clk 0:00:00.5]} 28... Nxg2 {[%clk 0:00:30.6]} 0-1

[Event "Early-Titled-Tuesday-Blitz-May-07-2024"]
[Site "Chess.com"]
[Date "2024.05.07"]
[Round "3"]
[White "AlexeiShirov"]
[Black "GiorgianBarbosa"]
[Result "1-0"]
[WhiteElo "2846"]
[BlackElo "2496"]
[TimeControl "180+1"]
[EndTime "8:31:22 PDT"]
[Termination "AlexeiShirov won by resignation"]

1. e4 {[%clk 0:03:00.9]} 1... c5 {[%clk 0:02:59.8]} 2. Nf3 {[%clk 0:02:59.6]}
2... g6 {[%clk 0:03:00.3]} 3. c4 {[%clk 0:02:58.6]} 3... Bg7 {[%clk 0:03:00]} 4.
d4 {[%clk 0:02:58.6]} 4... cxd4 {[%clk 0:03:00.9]} 5. Nxd4 {[%clk 0:02:58.6]}
5... Nc6 {[%clk 0:03:01.2]} 6. Be3 {[%clk 0:02:58.4]} 6... Nf6 {[%clk
0:03:01.7]} 7. Nc3 {[%clk 0:02:58.4]} 7... O-O {[%clk 0:03:01.9]} 8. Be2 {[%clk
0:02:58]} 8... Nxd4 {[%clk 0:03:01.8]} 9. Bxd4 {[%clk 0:02:57.4]} 9... d6 {[%clk
0:03:02.7]} 10. O-O {[%clk 0:02:53.6]} 10... Bd7 {[%clk 0:03:03.1]} 11. f4
{[%clk 0:02:50.9]} 11... Bc6 {[%clk 0:03:03.3]} 12. Bf3 {[%clk 0:02:47.2]} 12...
Nd7 {[%clk 0:03:02]} 13. b4 {[%clk 0:02:42.4]} 13... Bxd4+ {[%clk 0:02:51.1]}
14. Qxd4 {[%clk 0:02:41.1]} 14... Qb6 {[%clk 0:02:48.7]} 15. Qxb6 {[%clk
0:02:37.1]} 15... Nxb6 {[%clk 0:02:49.6]} 16. b5 {[%clk 0:02:36.1]} 16... Bd7
{[%clk 0:02:48.6]} 17. e5 {[%clk 0:02:21.3]} 17... dxe5 {[%clk 0:02:24.8]} 18.
c5 {[%clk 0:02:18.5]} 18... Nc4 {[%clk 0:02:16]} 19. Bxb7 {[%clk 0:02:16.8]}
19... Rab8 {[%clk 0:02:08.8]} 20. Bd5 {[%clk 0:02:03.1]} 20... Ne3 {[%clk
0:02:02.2]} 21. c6 {[%clk 0:02:02.6]} 21... Bf5 {[%clk 0:01:07.6]} 22. a4 {[%clk
0:01:46.2]} 22... Rbd8 {[%clk 0:00:51.8]} 23. Bf3 {[%clk 0:01:16.1]} 23... Nxf1
{[%clk 0:00:50.4]} 24. Rxf1 {[%clk 0:01:14.2]} 24... Rd3 {[%clk 0:00:44]} 25.
Rc1 {[%clk 0:01:10.1]} 25... exf4 {[%clk 0:00:33.4]} 26. a5 {[%clk 0:01:08]}
26... e5 {[%clk 0:00:30.7]} 27. b6 {[%clk 0:01:06.5]} 27... axb6 {[%clk
0:00:31.6]} 28. axb6 {[%clk 0:01:06.5]} 28... e4 {[%clk 0:00:32.5]} 29. Nxe4
{[%clk 0:01:03.3]} 29... Rb3 {[%clk 0:00:26.9]} 30. b7 {[%clk 0:01:01.4]} 30...
Rb4 {[%clk 0:00:08.8]} 31. Nd6 {[%clk 0:00:59.7]} 31... Be6 {[%clk 0:00:08.6]}
32. c7 {[%clk 0:00:58.1]} 32... Rd4 {[%clk 0:00:05]} 33. b8=Q {[%clk 0:00:54.7]}
33... Rxd6 {[%clk 0:00:05.4]} 34. c8=Q {[%clk 0:00:52.6]} 34... Bxc8 {[%clk
0:00:04.6]} 35. Qxd6 {[%clk 0:00:47.1]} 1-0

[Event "Early-Titled-Tuesday-Blitz-May-07-2024"]
[Site "Chess.com"]
[Date "2024.05.07"]
[Round "3"]
[White "stepanosinovsky"]
[Black "xxysoul6"]
[Result "0-1"]
[WhiteElo "2322"]
[BlackElo "2978"]
[TimeControl "180+1"]
[EndTime "8:31:24 PDT"]
[Termination "xxysoul6 won on time"]

1. e4 {[%clk 0:02:56.6]} 1... c5 {[%clk 0:02:58]} 2. Nf3 {[%clk 0:02:56.1]} 2...
d6 {[%clk 0:02:58.1]} 3. d4 {[%clk 0:02:55.1]} 3... cxd4 {[%clk 0:02:58.8]} 4.
Nxd4 {[%clk 0:02:56]} 4... Nf6 {[%clk 0:02:57.2]} 5. Nc3 {[%clk 0:02:56.2]} 5...
a6 {[%clk 0:02:57.7]} 6. Be3 {[%clk 0:02:56.9]} 6... e5 {[%clk 0:02:56]} 7. Nb3
{[%clk 0:02:57.2]} 7... Be7 {[%clk 0:02:55.4]} 8. Qd2 {[%clk 0:02:57.2]} 8...
Ng4 {[%clk 0:02:54.4]} 9. g3 {[%clk 0:02:53.1]} 9... Be6 {[%clk 0:02:51.3]} 10.
O-O-O {[%clk 0:02:49.8]} 10... Nd7 {[%clk 0:02:50.5]} 11. f4 {[%clk 0:02:47.2]}
11... Nxe3 {[%clk 0:02:44.1]} 12. Qxe3 {[%clk 0:02:45.7]} 12... Qb6 {[%clk
0:02:44.7]} 13. Qd2 {[%clk 0:02:25.1]} 13... Nf6 {[%clk 0:02:44.2]} 14. f5
{[%clk 0:02:16.2]} 14... Bd7 {[%clk 0:02:44.1]} 15. Kb1 {[%clk 0:02:07.2]} 15...
Bc6 {[%clk 0:02:40.5]} 16. Qg2 {[%clk 0:02:04.1]} 16... Rd8 {[%clk 0:02:22.5]}
17. g4 {[%clk 0:02:01]} 17... h6 {[%clk 0:02:21.9]} 18. h4 {[%clk 0:01:59.9]}
18... a5 {[%clk 0:02:22.3]} 19. g5 {[%clk 0:01:58.1]} 19... Nh5 {[%clk
0:02:21.3]} 20. gxh6 {[%clk 0:01:36.2]} 20... Rxh6 {[%clk 0:02:19.2]} 21. Nd5
{[%clk 0:01:34]} 21... Bxd5 {[%clk 0:01:57.1]} 22. Rxd5 {[%clk 0:01:34.9]} 22...
Kf8 {[%clk 0:01:55.5]} 23. Rxa5 {[%clk 0:01:26.6]} 23... Nf4 {[%clk 0:01:54.4]}
24. Qg4 {[%clk 0:01:16.9]} 24... Rc8 {[%clk 0:01:38.2]} 25. f6 {[%clk
0:01:15.7]} 25... Qc7 {[%clk 0:01:25.4]} 26. fxe7+ {[%clk 0:00:59.3]} 26... Kxe7
{[%clk 0:01:26.3]} 27. Rh2 {[%clk 0:00:57.8]} 27... Rg6 {[%clk 0:01:25.4]} 28.
Qd1 {[%clk 0:00:47.5]} 28... Rg1 {[%clk 0:01:25.4]} 29. Nc1 {[%clk 0:00:40]}
29... Qxa5 {[%clk 0:01:24]} 30. Rf2 {[%clk 0:00:25.5]} 30... Qb4 {[%clk
0:01:18]} 31. Qf3 {[%clk 0:00:21.6]} 31... Qe1 {[%clk 0:01:17.8]} 32. a3 {[%clk
0:00:18.7]} 32... Rh8 {[%clk 0:01:10.5]} 33. Qb3 {[%clk 0:00:14]} 33... Qxf2
{[%clk 0:01:10.3]} 34. Qxb7+ {[%clk 0:00:14.2]} 34... Kf6 {[%clk 0:01:10.2]} 35.
Bc4 {[%clk 0:00:14.2]} 35... Rxc1+ {[%clk 0:01:10.1]} 36. Ka2 {[%clk 0:00:13.7]}
36... Ne6 {[%clk 0:01:10.7]} 37. Qd5 {[%clk 0:00:12]} 37... Qxc2 {[%clk
0:01:08.2]} 38. Bd3 {[%clk 0:00:07.6]} 38... Qd1 {[%clk 0:01:04.6]} 0-1